[Event "*** Titled Tuesday Blitz"]
[Site "Chess.com"]
[Date "2021.04.06"]
[Round "11"]
[White "jraosam"]
[Black "Rodchenkov_Vitalij"]
[Result "1-0"]
[WhiteElo "1899"]
[BlackElo "2117"]
[TimeControl "180+1"]
[EndTime "12:03:39 PDT"]
[Termination "jraosam won by resignation"]

1. d4 {[%clk 0:03:00.9]} 1... Nf6 {[%clk 0:02:57.3]} 2. e3 {[%clk 0:03:01.8]}
2... b6 {[%clk 0:02:55.5]} 3. f4 {[%clk 0:02:57]} 3... Bb7 {[%clk 0:02:55.1]} 4.
c4 {[%clk 0:02:52.9]} 4... d6 {[%clk 0:02:54.8]} 5. Nc3 {[%clk 0:02:45.9]} 5...
Nbd7 {[%clk 0:02:54.4]} 6. Nf3 {[%clk 0:02:38.4]} 6... e5 {[%clk 0:02:51.1]} 7.
d5 {[%clk 0:02:29.5]} 7... exf4 {[%clk 0:02:41.9]} 8. exf4 {[%clk 0:02:18.6]}
8... Qe7+ {[%clk 0:02:42.2]} 9. Be2 {[%clk 0:02:09.5]} 9... g6 {[%clk 0:02:41]}
10. O-O {[%clk 0:02:05.1]} 10... O-O-O {[%clk 0:02:36.8]} 11. Nd4 {[%clk
0:01:56.9]} 11... Bg7 {[%clk 0:02:30.7]} 12. Nc6 {[%clk 0:01:44.2]} 12... Bxc6
{[%clk 0:02:29.8]} 13. dxc6 {[%clk 0:01:39.4]} 13... Nb8 {[%clk 0:02:19.7]} 14.
Qa4 {[%clk 0:01:39.1]} 14... a5 {[%clk 0:02:12.9]} 15. Re1 {[%clk 0:01:30.9]}
15... Qe8 {[%clk 0:02:07]} 16. Nd5 {[%clk 0:01:20.8]} 16... Qxc6 {[%clk
0:02:02.7]} 17. Ne7+ {[%clk 0:01:17.5]} 1-0

[Event "*** Titled Tuesday Blitz"]
[Site "Chess.com"]
[Date "2021.04.06"]
[Round "11"]
[White "Two_Towers_Krakow"]
[Black "blitzking1729"]
[Result "0-1"]
[WhiteElo "2529"]
[BlackElo "2634"]
[TimeControl "180+1"]
[EndTime "12:03:45 PDT"]
[Termination "blitzking1729 won by resignation"]

1. e4 {[%clk 0:03:00.9]} 1... c5 {[%clk 0:02:57.9]} 2. Nf3 {[%clk 0:03:01.2]}
2... e6 {[%clk 0:02:57.7]} 3. d4 {[%clk 0:03:01.4]} 3... cxd4 {[%clk 0:02:58.6]}
4. Nxd4 {[%clk 0:03:01.7]} 4... a6 {[%clk 0:02:59.1]} 5. Bd3 {[%clk 0:03:01.1]}
5... Bc5 {[%clk 0:02:58.8]} 6. Nb3 {[%clk 0:03:00.4]} 6... Be7 {[%clk
0:02:57.5]} 7. O-O {[%clk 0:02:58.2]} 7... Nc6 {[%clk 0:02:57.9]} 8. Qe2 {[%clk
0:02:58]} 8... Qc7 {[%clk 0:02:54.5]} 9. f4 {[%clk 0:02:53.5]} 9... d6 {[%clk
0:02:54.3]} 10. c4 {[%clk 0:02:50.8]} 10... Nf6 {[%clk 0:02:52.6]} 11. Nc3
{[%clk 0:02:50.9]} 11... e5 {[%clk 0:02:50.3]} 12. Nd5 {[%clk 0:02:43.5]} 12...
Nxd5 {[%clk 0:02:46.6]} 13. exd5 {[%clk 0:02:40.4]} 13... Nb4 {[%clk 0:02:43.6]}
14. Bb1 {[%clk 0:02:36.5]} 14... a5 {[%clk 0:02:42.4]} 15. a3 {[%clk 0:02:36.1]}
15... Na6 {[%clk 0:02:41.7]} 16. Kh1 {[%clk 0:02:33.3]} 16... a4 {[%clk
0:02:39]} 17. Nd2 {[%clk 0:02:29.1]} 17... Nc5 {[%clk 0:02:38.8]} 18. Bc2 {[%clk
0:02:14.3]} 18... O-O {[%clk 0:02:34.7]} 19. f5 {[%clk 0:02:05]} 19... Bg5
{[%clk 0:02:06.9]} 20. f6 {[%clk 0:01:58.7]} 20... g6 {[%clk 0:01:58.8]} 21. Ne4
{[%clk 0:01:55.6]} 21... Bxc1 {[%clk 0:01:49.7]} 22. Raxc1 {[%clk 0:01:55.1]}
22... Nxe4 {[%clk 0:01:48.7]} 23. Bxe4 {[%clk 0:01:54.4]} 23... h6 {[%clk
0:01:47.1]} 24. Qh5 {[%clk 0:01:49.2]} 24... gxh5 {[%clk 0:01:45.5]} 0-1

[Event "*** Titled Tuesday Blitz"]
[Site "Chess.com"]
[Date "2021.04.06"]
[Round "11"]
[White "tusplingher"]
[Black "FMalexhdez"]
[Result "0-1"]
[WhiteElo "2299"]
[BlackElo "2204"]
[TimeControl "180+1"]
[EndTime "12:03:49 PDT"]
[Termination "FMalexhdez won by resignation"]

1. e4 {[%clk 0:02:59.3]} 1... c5 {[%clk 0:02:59.6]} 2. d4 {[%clk 0:02:59.2]}
2... d6 {[%clk 0:03:00.2]} 3. dxc5 {[%clk 0:02:58.7]} 3... Qa5+ {[%clk
0:03:00.3]} 4. Nc3 {[%clk 0:02:58.9]} 4... dxc5 {[%clk 0:02:56.6]} 5. Nf3 {[%clk
0:02:58.7]} 5... e6 {[%clk 0:02:49.7]} 6. Bc4 {[%clk 0:02:57.8]} 6... Nc6 {[%clk
0:02:49]} 7. O-O {[%clk 0:02:57.4]} 7... a6 {[%clk 0:02:39.3]} 8. Re1 {[%clk
0:02:56.5]} 8... b5 {[%clk 0:02:37.7]} 9. Bd5 {[%clk 0:02:51.8]} 9... Bb7 {[%clk
0:02:31]} 10. Bxc6+ {[%clk 0:02:51.4]} 10... Bxc6 {[%clk 0:02:30.6]} 11. Ne5
{[%clk 0:02:51.4]} 11... Rc8 {[%clk 0:02:16.6]} 12. Bf4 {[%clk 0:02:46.5]} 12...
Nf6 {[%clk 0:02:13.7]} 13. Nxc6 {[%clk 0:02:45.8]} 13... Rxc6 {[%clk 0:02:12.7]}
14. Nd5 {[%clk 0:02:45.5]} 14... Be7 {[%clk 0:02:07.5]} 15. Nxe7 {[%clk
0:02:44.3]} 15... Kxe7 {[%clk 0:02:06.7]} 16. Bg5 {[%clk 0:02:44.3]} 16... h6
{[%clk 0:02:04.7]} 17. Bh4 {[%clk 0:02:43.9]} 17... g5 {[%clk 0:02:03.9]} 18.
Bg3 {[%clk 0:02:43.8]} 18... Rd8 {[%clk 0:02:02.1]} 19. Qf3 {[%clk 0:02:42.6]}
19... Rcc8 {[%clk 0:01:50]} 20. Be5 {[%clk 0:02:37.6]} 20... Nd7 {[%clk
0:01:47.8]} 21. Bc3 {[%clk 0:02:36.6]} 21... b4 {[%clk 0:01:40.9]} 22. Bg7
{[%clk 0:02:35.8]} 22... Rg8 {[%clk 0:01:35.3]} 23. Bxh6 {[%clk 0:02:35.5]}
23... Rg6 {[%clk 0:01:33.8]} 24. Rad1 {[%clk 0:02:34]} 24... Rxh6 {[%clk
0:01:21.2]} 25. Rxd7+ {[%clk 0:02:33.1]} 25... Kxd7 {[%clk 0:01:21.1]} 26. Qxf7+
{[%clk 0:02:33.7]} 26... Kc6 {[%clk 0:01:21.2]} 27. Rd1 {[%clk 0:02:33.2]} 27...
Qc7 {[%clk 0:01:17.5]} 28. Qf3 {[%clk 0:02:32.1]} 28... Qxh2+ {[%clk 0:01:14]}
29. Kf1 {[%clk 0:02:32]} 29... Qf4 {[%clk 0:01:11.8]} 30. Qd3 {[%clk 0:02:29.6]}
30... Rh1+ {[%clk 0:01:10.1]} 31. Ke2 {[%clk 0:02:28.5]} 31... Rxd1 {[%clk
0:01:09.5]} 0-1

[Event "*** Titled Tuesday Blitz"]
[Site "Chess.com"]
[Date "2021.04.06"]
[Round "11"]
[White "Aslanov_Umid"]
[Black "CakeinSpace2002"]
[Result "1-0"]
[WhiteElo "2412"]
[BlackElo "2325"]
[TimeControl "180+1"]
[EndTime "12:04:03 PDT"]
[Termination "Aslanov_Umid won by resignation"]

1. e4 {[%clk 0:03:00.9]} 1... c5 {[%clk 0:03:00]} 2. Nf3 {[%clk 0:03:00.9]} 2...
Nc6 {[%clk 0:03:00.2]} 3. d4 {[%clk 0:03:01.3]} 3... cxd4 {[%clk 0:03:01.1]} 4.
Nxd4 {[%clk 0:03:01.9]} 4... Nf6 {[%clk 0:03:02]} 5. Nc3 {[%clk 0:03:01.6]} 5...
e5 {[%clk 0:03:02.2]} 6. Ndb5 {[%clk 0:03:01.3]} 6... d6 {[%clk 0:03:02.1]} 7.
Bg5 {[%clk 0:03:00.5]} 7... a6 {[%clk 0:03:02.1]} 8. Na3 {[%clk 0:03:01.1]} 8...
b5 {[%clk 0:03:02.3]} 9. Nd5 {[%clk 0:03:01.6]} 9... Be7 {[%clk 0:03:02.3]} 10.
Bxf6 {[%clk 0:03:01.1]} 10... Bxf6 {[%clk 0:03:03.2]} 11. c3 {[%clk 0:03:01.6]}
11... O-O {[%clk 0:03:02.4]} 12. Nc2 {[%clk 0:03:00.8]} 12... Rb8 {[%clk
0:03:02.4]} 13. Be2 {[%clk 0:02:59.1]} 13... Bg5 {[%clk 0:03:02.2]} 14. h4
{[%clk 0:02:58.8]} 14... Bh6 {[%clk 0:03:02.2]} 15. Bg4 {[%clk 0:02:53.7]} 15...
Kh8 {[%clk 0:02:52.2]} 16. Nce3 {[%clk 0:02:51.3]} 16... a5 {[%clk 0:02:41.6]}
17. Bxc8 {[%clk 0:02:50.3]} 17... Qxc8 {[%clk 0:02:41.1]} 18. Nf5 {[%clk
0:02:50.2]} 18... Bf4 {[%clk 0:02:33.1]} 19. Nxd6 {[%clk 0:02:40.7]} 19... Qe6
{[%clk 0:02:32.4]} 20. Nf5 {[%clk 0:02:36.3]} 20... g6 {[%clk 0:02:31]} 21. Nfe3
{[%clk 0:02:29.9]} 21... Bxe3 {[%clk 0:02:28.9]} 22. Nxe3 {[%clk 0:02:30.8]}
22... b4 {[%clk 0:02:28.1]} 23. Qg4 {[%clk 0:02:29.1]} 23... Qd6 {[%clk
0:02:23.9]} 24. O-O {[%clk 0:02:20.6]} 24... bxc3 {[%clk 0:02:22.6]} 25. bxc3
{[%clk 0:02:21.5]} 25... Rb2 {[%clk 0:02:19.9]} 26. Nc4 {[%clk 0:02:18.1]} 26...
Qb8 {[%clk 0:02:16.8]} 27. Nxb2 {[%clk 0:02:17.1]} 27... Qxb2 {[%clk 0:02:17.7]}
28. Qf3 {[%clk 0:02:11.8]} 28... Kg7 {[%clk 0:02:16.3]} 29. Rfb1 {[%clk
0:02:07.5]} 29... Qc2 {[%clk 0:02:15.8]} 30. Rb6 {[%clk 0:02:06.9]} 30... Rc8
{[%clk 0:02:10.2]} 31. Rd1 {[%clk 0:02:06.6]} 31... Qxa2 {[%clk 0:02:01.5]} 32.
Rd6 {[%clk 0:01:56.7]} 32... Qc4 {[%clk 0:02:01.1]} 33. Qf6+ {[%clk 0:01:55.1]}
33... Kg8 {[%clk 0:02:01.2]} 34. Rbxc6 {[%clk 0:01:54.6]} 1-0

[Event "*** Titled Tuesday Blitz"]
[Site "Chess.com"]
[Date "2021.04.06"]
[Round "11"]
[White "ehrenfeld"]
[Black "alejogarcia1999"]
[Result "1-0"]
[WhiteElo "2534"]
[BlackElo "2417"]
[TimeControl "180+1"]
[EndTime "12:04:04 PDT"]
[Termination "ehrenfeld won by resignation"]

1. e4 {[%clk 0:03:00.9]} 1... c5 {[%clk 0:02:59]} 2. Nf3 {[%clk 0:03:00.2]} 2...
e6 {[%clk 0:02:59.3]} 3. d3 {[%clk 0:02:59.4]} 3... Nc6 {[%clk 0:02:58.5]} 4. g3
{[%clk 0:02:59.4]} 4... g6 {[%clk 0:02:59.4]} 5. Bg2 {[%clk 0:02:59.3]} 5... Bg7
{[%clk 0:03:00.3]} 6. O-O {[%clk 0:02:59.4]} 6... Nge7 {[%clk 0:03:01.2]} 7. c3
{[%clk 0:02:58.6]} 7... O-O {[%clk 0:03:02.1]} 8. d4 {[%clk 0:02:57.8]} 8...
cxd4 {[%clk 0:03:02.9]} 9. cxd4 {[%clk 0:02:57.6]} 9... d5 {[%clk 0:03:03.5]}
10. e5 {[%clk 0:02:57.9]} 10... Nf5 {[%clk 0:03:03.8]} 11. Nc3 {[%clk
0:02:56.5]} 11... b6 {[%clk 0:02:53.1]} 12. Bg5 {[%clk 0:02:51.6]} 12... Qd7
{[%clk 0:02:52.3]} 13. Qd2 {[%clk 0:02:44.2]} 13... Ba6 {[%clk 0:02:51.6]} 14.
Rfe1 {[%clk 0:02:43.5]} 14... Na5 {[%clk 0:02:51.5]} 15. b3 {[%clk 0:02:42.9]}
15... Rac8 {[%clk 0:02:50.4]} 16. Rac1 {[%clk 0:02:42.8]} 16... Rc7 {[%clk
0:02:49.6]} 17. g4 {[%clk 0:02:41.8]} 17... Ne7 {[%clk 0:02:47.7]} 18. Bf6
{[%clk 0:02:38.9]} 18... Rfc8 {[%clk 0:02:46.7]} 19. h4 {[%clk 0:02:32]} 19...
Rc6 {[%clk 0:02:24.9]} 20. h5 {[%clk 0:02:27.2]} 20... Bf8 {[%clk 0:02:19.2]}
21. hxg6 {[%clk 0:01:57.7]} 21... hxg6 {[%clk 0:02:19.1]} 22. Ng5 {[%clk
0:01:47.5]} 22... Qc7 {[%clk 0:02:18.5]} 23. Qf4 {[%clk 0:01:46.6]} 23... Rxc3
{[%clk 0:01:52]} 24. Qh2 {[%clk 0:01:43.8]} 1-0

[Event "*** Titled Tuesday Blitz"]
[Site "Chess.com"]
[Date "2021.04.06"]
[Round "11"]
[White "Redzishchess"]
[Black "InitiatingASC"]
[Result "1-0"]
[WhiteElo "2350"]
[BlackElo "2422"]
[TimeControl "180+1"]
[EndTime "12:04:04 PDT"]
[Termination "Redzishchess won by resignation"]

1. e4 {[%clk 0:03:00.9]} 1... c5 {[%clk 0:02:59.7]} 2. Nf3 {[%clk 0:03:01.2]}
2... Nc6 {[%clk 0:02:59.8]} 3. d4 {[%clk 0:03:01.7]} 3... cxd4 {[%clk
0:03:00.7]} 4. Nxd4 {[%clk 0:03:01.9]} 4... Nf6 {[%clk 0:03:01.4]} 5. Nc3 {[%clk
0:03:02.4]} 5... e5 {[%clk 0:03:01.8]} 6. Ndb5 {[%clk 0:03:02.9]} 6... h6 {[%clk
0:03:02.4]} 7. Be2 {[%clk 0:02:51.9]} 7... d6 {[%clk 0:02:58]} 8. Nd5 {[%clk
0:02:52.2]} 8... Nxd5 {[%clk 0:02:56.6]} 9. exd5 {[%clk 0:02:53.1]} 9... Nb8
{[%clk 0:02:57]} 10. c4 {[%clk 0:02:52.9]} 10... Be7 {[%clk 0:02:51.3]} 11. c5
{[%clk 0:02:00.9]} 11... O-O {[%clk 0:02:28.6]} 12. O-O {[%clk 0:01:51.4]} 12...
a6 {[%clk 0:02:26.5]} 13. Nxd6 {[%clk 0:01:50.5]} 13... Bxd6 {[%clk 0:02:26.4]}
14. cxd6 {[%clk 0:01:51.4]} 14... Qxd6 {[%clk 0:02:27]} 15. Be3 {[%clk 0:01:46]}
15... Rd8 {[%clk 0:02:21.5]} 16. Rc1 {[%clk 0:01:40.7]} 16... Bf5 {[%clk
0:02:18.2]} 17. Qb3 {[%clk 0:01:24.1]} 17... Qxd5 {[%clk 0:02:12.2]} 18. Rfd1
{[%clk 0:01:23]} 18... Qa5 {[%clk 0:02:08.5]} 19. Bb6 {[%clk 0:01:07.1]} 19...
Rxd1+ {[%clk 0:02:06.7]} 20. Rxd1 {[%clk 0:01:08]} 20... Bc2 {[%clk 0:01:57.3]}
21. Rd8+ {[%clk 0:01:05.6]} 21... Kh7 {[%clk 0:01:57.1]} 22. Qxc2+ {[%clk
0:01:06]} 1-0

[Event "*** Titled Tuesday Blitz"]
[Site "Chess.com"]
[Date "2021.04.06"]
[Round "11"]
[White "SergioGarciaFuentes"]
[Black "DonBroca"]
[Result "1-0"]
[WhiteElo "2326"]
[BlackElo "2207"]
[TimeControl "180+1"]
[EndTime "12:04:06 PDT"]
[Termination "SergioGarciaFuentes won by resignation"]

1. Nf3 {[%clk 0:03:00.9]} 1... c5 {[%clk 0:02:52.9]} 2. g3 {[%clk 0:03:00.6]}
2... d6 {[%clk 0:02:53.2]} 3. Bg2 {[%clk 0:03:00.1]} 3... g6 {[%clk 0:02:54.1]}
4. O-O {[%clk 0:02:59.3]} 4... Bg7 {[%clk 0:02:55]} 5. d4 {[%clk 0:02:59.2]}
5... Nf6 {[%clk 0:02:55.9]} 6. dxc5 {[%clk 0:02:55.6]} 6... dxc5 {[%clk
0:02:55.9]} 7. Qxd8+ {[%clk 0:02:54.5]} 7... Kxd8 {[%clk 0:02:56.3]} 8. Nc3
{[%clk 0:02:45.6]} 8... Nc6 {[%clk 0:02:52.2]} 9. Be3 {[%clk 0:02:10.4]} 9... b6
{[%clk 0:02:47.2]} 10. Ng5 {[%clk 0:02:05.9]} 10... Bd7 {[%clk 0:02:42.2]} 11.
Nxf7+ {[%clk 0:02:03.4]} 11... Kc8 {[%clk 0:02:43.1]} 12. Nxh8 {[%clk
0:01:59.7]} 12... Bxh8 {[%clk 0:02:44]} 13. Rad1 {[%clk 0:01:52.6]} 13... Ng4
{[%clk 0:02:42.7]} 14. Bh3 {[%clk 0:01:47.2]} 14... h5 {[%clk 0:02:37.2]} 15.
Bg5 {[%clk 0:01:37.8]} 15... Bd4 {[%clk 0:02:31.5]} 16. e3 {[%clk 0:01:32.6]}
16... Bf6 {[%clk 0:02:20]} 17. Bxf6 {[%clk 0:01:27.6]} 17... exf6 {[%clk
0:02:20.9]} 18. Rfe1 {[%clk 0:01:16.5]} 18... Nce5 {[%clk 0:02:19]} 19. Kg2
{[%clk 0:01:13.1]} 19... Bc6+ {[%clk 0:02:18.6]} 20. e4 {[%clk 0:01:12.1]} 20...
f5 {[%clk 0:02:13.3]} 21. f3 {[%clk 0:01:12]} 21... Nf6 {[%clk 0:02:11.2]} 22.
Nd5 {[%clk 0:01:08.4]} 22... Nxd5 {[%clk 0:01:51.1]} 23. exd5 {[%clk 0:01:07.3]}
1-0

[Event "*** Titled Tuesday Blitz"]
[Site "Chess.com"]
[Date "2021.04.06"]
[Round "11"]
[White "Hard_Utilizator"]
[Black "alexrustemov"]
[Result "0-1"]
[WhiteElo "2508"]
[BlackElo "2652"]
[TimeControl "180+1"]
[EndTime "12:04:07 PDT"]
[Termination "alexrustemov won by resignation"]

1. e4 {[%clk 0:03:00.9]} 1... e6 {[%clk 0:02:58.7]} 2. d4 {[%clk 0:03:00.9]}
2... d5 {[%clk 0:02:58.5]} 3. Nd2 {[%clk 0:03:01.4]} 3... c5 {[%clk 0:02:57.9]}
4. exd5 {[%clk 0:02:57.6]} 4... Qxd5 {[%clk 0:02:55]} 5. Ngf3 {[%clk 0:02:54.7]}
5... cxd4 {[%clk 0:02:53.9]} 6. Nb3 {[%clk 0:02:53.9]} 6... e5 {[%clk
0:02:37.2]} 7. c3 {[%clk 0:02:47.5]} 7... Nc6 {[%clk 0:02:36]} 8. cxd4 {[%clk
0:02:43.2]} 8... e4 {[%clk 0:02:35.2]} 9. Nfd2 {[%clk 0:02:27.6]} 9... Nf6
{[%clk 0:02:20.7]} 10. Bc4 {[%clk 0:02:27.2]} 10... Qg5 {[%clk 0:02:03.8]} 11.
Nxe4 {[%clk 0:01:37.6]} 11... Qxg2 {[%clk 0:01:58.1]} 12. Nxf6+ {[%clk
0:01:35.6]} 12... gxf6 {[%clk 0:01:59]} 13. Qe2+ {[%clk 0:01:35.5]} 13... Be7
{[%clk 0:01:53.9]} 14. Rf1 {[%clk 0:01:31]} 14... Bh3 {[%clk 0:01:42.8]} 15. Qh5
{[%clk 0:01:23.9]} 15... O-O-O {[%clk 0:01:36.9]} 16. Be3 {[%clk 0:01:23.8]}
16... Bb4+ {[%clk 0:01:34]} 17. Kd1 {[%clk 0:01:17.7]} 17... Bg4+ {[%clk
0:01:33.4]} 0-1

[Event "*** Titled Tuesday Blitz"]
[Site "Chess.com"]
[Date "2021.04.06"]
[Round "11"]
[White "nrvisakh"]
[Black "Skat2704"]
[Result "1-0"]
[WhiteElo "2778"]
[BlackElo "2646"]
[TimeControl "180+1"]
[EndTime "12:04:09 PDT"]
[Termination "nrvisakh won by resignation"]

1. e4 {[%clk 0:03:00.9]} 1... c6 {[%clk 0:02:59.9]} 2. Nf3 {[%clk 0:02:58.7]}
2... d5 {[%clk 0:02:59.9]} 3. d3 {[%clk 0:02:59.1]} 3... Nd7 {[%clk 0:02:58.5]}
4. g3 {[%clk 0:02:56.6]} 4... g6 {[%clk 0:02:58.6]} 5. Bg2 {[%clk 0:02:56.8]}
5... Bg7 {[%clk 0:02:59]} 6. O-O {[%clk 0:02:57.1]} 6... e5 {[%clk 0:02:59.1]}
7. exd5 {[%clk 0:02:51.9]} 7... cxd5 {[%clk 0:02:58.6]} 8. c4 {[%clk 0:02:52.3]}
8... d4 {[%clk 0:02:56.6]} 9. Re1 {[%clk 0:02:35.4]} 9... Ne7 {[%clk 0:02:56.2]}
10. Nbd2 {[%clk 0:02:33.6]} 10... O-O {[%clk 0:02:56.4]} 11. Ne4 {[%clk
0:02:33.9]} 11... h6 {[%clk 0:02:56]} 12. b3 {[%clk 0:02:27.9]} 12... f5 {[%clk
0:02:55.9]} 13. Nd6 {[%clk 0:02:27.4]} 13... Nc6 {[%clk 0:02:55]} 14. Ba3 {[%clk
0:02:25.9]} 14... Qa5 {[%clk 0:02:50.8]} 15. Nb5 {[%clk 0:01:37.1]} 15... Re8
{[%clk 0:02:42.4]} 16. b4 {[%clk 0:01:33.6]} 16... Qd8 {[%clk 0:02:41.8]} 17.
Nd6 {[%clk 0:01:31.3]} 17... Re6 {[%clk 0:02:38]} 18. c5 {[%clk 0:01:31.5]}
18... Kh7 {[%clk 0:02:28.9]} 19. b5 {[%clk 0:01:27.7]} 19... Ne7 {[%clk
0:02:24.8]} 20. Nxd4 {[%clk 0:01:25.3]} 20... Rf6 {[%clk 0:02:20.7]} 21. Nf3
{[%clk 0:01:18.4]} 21... Qa5 {[%clk 0:02:17.2]} 22. Qb3 {[%clk 0:01:11.4]} 22...
e4 {[%clk 0:02:10.2]} 23. dxe4 {[%clk 0:01:02.9]} 23... fxe4 {[%clk 0:02:10.3]}
24. Nxe4 {[%clk 0:01:00.2]} 1-0

[Event "*** Titled Tuesday Blitz"]
[Site "Chess.com"]
[Date "2021.04.06"]
[Round "11"]
[White "AlexPapasimakopoulos"]
[Black "fastestmindalive"]
[Result "0-1"]
[WhiteElo "2642"]
[BlackElo "2785"]
[TimeControl "180+1"]
[EndTime "12:04:23 PDT"]
[Termination "fastestmindalive won by checkmate"]

1. d4 {[%clk 0:03:00.9]} 1... Nf6 {[%clk 0:02:59.5]} 2. c4 {[%clk 0:02:57]} 2...
e6 {[%clk 0:02:59.4]} 3. Nc3 {[%clk 0:02:57.2]} 3... Bb4 {[%clk 0:02:59.5]} 4.
Qc2 {[%clk 0:02:57.8]} 4... Nc6 {[%clk 0:02:59.1]} 5. Nf3 {[%clk 0:02:57.5]}
5... d6 {[%clk 0:02:59.2]} 6. Bd2 {[%clk 0:02:56.7]} 6... Qe7 {[%clk 0:02:56.6]}
7. a3 {[%clk 0:02:56.6]} 7... Bxc3 {[%clk 0:02:56.8]} 8. Bxc3 {[%clk 0:02:57.5]}
8... a5 {[%clk 0:02:57.7]} 9. e4 {[%clk 0:02:55.7]} 9... e5 {[%clk 0:02:56.7]}
10. d5 {[%clk 0:02:56.2]} 10... Nb8 {[%clk 0:02:53.9]} 11. b4 {[%clk 0:02:50.6]}
11... O-O {[%clk 0:02:43]} 12. Bd3 {[%clk 0:02:45.4]} 12... axb4 {[%clk
0:02:30.7]} 13. axb4 {[%clk 0:02:46.3]} 13... Rxa1+ {[%clk 0:02:31]} 14. Bxa1
{[%clk 0:02:46.5]} 14... Nxe4 {[%clk 0:02:31.9]} 15. Bxe4 {[%clk 0:02:43.2]}
15... f5 {[%clk 0:02:32]} 16. O-O {[%clk 0:02:31]} 16... fxe4 {[%clk 0:02:31.6]}
17. Qxe4 {[%clk 0:02:31.9]} 17... Rf4 {[%clk 0:02:28.4]} 18. Qc2 {[%clk
0:01:59.8]} 18... Rxf3 {[%clk 0:02:28.1]} 19. gxf3 {[%clk 0:01:58.1]} 19... Bh3
{[%clk 0:02:28.7]} 20. f4 {[%clk 0:01:50.8]} 20... exf4 {[%clk 0:01:58.7]} 21.
f3 {[%clk 0:01:31.7]} 21... Qg5+ {[%clk 0:01:57.7]} 22. Kh1 {[%clk 0:01:32.3]}
22... Bxf1 {[%clk 0:01:57.1]} 23. c5 {[%clk 0:01:29.1]} 23... Nd7 {[%clk
0:01:40.2]} 24. Bd4 {[%clk 0:01:17.3]} 24... Qxd5 {[%clk 0:01:37]} 25. Bg1
{[%clk 0:01:15.7]} 25... Qxf3+ {[%clk 0:01:36.1]} 26. Qg2 {[%clk 0:01:16.6]}
26... Qxg2# {[%clk 0:01:36]} 0-1

[Event "*** Titled Tuesday Blitz"]
[Site "Chess.com"]
[Date "2021.04.06"]
[Round "11"]
[White "KroshkaKami"]
[Black "LEGENYA1998"]
[Result "1-0"]
[WhiteElo "2365"]
[BlackElo "2230"]
[TimeControl "180+1"]
[EndTime "12:04:29 PDT"]
[Termination "KroshkaKami won by checkmate"]

1. e4 {[%clk 0:02:37.1]} 1... c6 {[%clk 0:02:56]} 2. Nf3 {[%clk 0:02:29.6]} 2...
d5 {[%clk 0:02:54.9]} 3. d3 {[%clk 0:02:25.5]} 3... dxe4 {[%clk 0:02:53.1]} 4.
dxe4 {[%clk 0:02:26.4]} 4... Qxd1+ {[%clk 0:02:53]} 5. Kxd1 {[%clk 0:02:26.8]}
5... g6 {[%clk 0:02:49.3]} 6. Nbd2 {[%clk 0:02:25.5]} 6... Bg7 {[%clk
0:02:48.5]} 7. a4 {[%clk 0:02:24.3]} 7... Bg4 {[%clk 0:02:48.3]} 8. a5 {[%clk
0:02:21.6]} 8... Nd7 {[%clk 0:02:47.3]} 9. Be2 {[%clk 0:02:20.4]} 9... O-O-O
{[%clk 0:02:46.8]} 10. Ne1 {[%clk 0:02:18.2]} 10... Bxe2+ {[%clk 0:02:44.1]} 11.
Kxe2 {[%clk 0:02:19.1]} 11... e6 {[%clk 0:02:42.3]} 12. Nc4 {[%clk 0:02:15.5]}
12... Nc5 {[%clk 0:02:41.9]} 13. f3 {[%clk 0:02:04.3]} 13... Ne7 {[%clk
0:02:42.2]} 14. Be3 {[%clk 0:01:48.7]} 14... Bd4 {[%clk 0:02:39.6]} 15. Bf4
{[%clk 0:01:32.2]} 15... e5 {[%clk 0:02:12.9]} 16. Bg5 {[%clk 0:01:28.9]} 16...
Rhe8 {[%clk 0:02:09.9]} 17. c3 {[%clk 0:01:28.5]} 17... Nb3 {[%clk 0:02:08.8]}
18. Ra3 {[%clk 0:01:17.7]} 18... Bc5 {[%clk 0:01:57.5]} 19. Rxb3 {[%clk
0:01:15.8]} 19... Kc7 {[%clk 0:01:57.7]} 20. Bf6 {[%clk 0:01:13.5]} 20... b5
{[%clk 0:01:48.2]} 21. axb6+ {[%clk 0:01:09.6]} 21... axb6 {[%clk 0:01:47.9]}
22. Bxe5+ {[%clk 0:01:09]} 22... Kb7 {[%clk 0:01:47.9]} 23. Nd3 {[%clk 0:01:05]}
23... Ka6 {[%clk 0:01:43.9]} 24. Nxc5+ {[%clk 0:00:58.9]} 24... bxc5 {[%clk
0:01:44.2]} 25. Ra1# {[%clk 0:00:58.7]} 1-0

[Event "*** Titled Tuesday Blitz"]
[Site "Chess.com"]
[Date "2021.04.06"]
[Round "11"]
[White "PushingpawnsNYC"]
[Black "cukin84"]
[Result "0-1"]
[WhiteElo "2280"]
[BlackElo "2121"]
[TimeControl "180+1"]
[EndTime "12:04:32 PDT"]
[Termination "cukin84 won on time"]

1. e4 {[%clk 0:02:41.5]} 1... c6 {[%clk 0:02:59.3]} 2. d4 {[%clk 0:02:29]} 2...
d5 {[%clk 0:02:59.3]} 3. exd5 {[%clk 0:02:27]} 3... cxd5 {[%clk 0:02:59.1]} 4.
Bd3 {[%clk 0:02:27.5]} 4... Nc6 {[%clk 0:02:58.8]} 5. c3 {[%clk 0:02:27.7]} 5...
Nf6 {[%clk 0:02:58.4]} 6. h3 {[%clk 0:02:27.1]} 6... g6 {[%clk 0:02:57.9]} 7.
Nf3 {[%clk 0:02:26.7]} 7... Bf5 {[%clk 0:02:57.4]} 8. Be2 {[%clk 0:02:25.6]}
8... Bg7 {[%clk 0:02:53.6]} 9. O-O {[%clk 0:02:25.7]} 9... O-O {[%clk
0:02:52.2]} 10. Na3 {[%clk 0:02:15.2]} 10... a6 {[%clk 0:02:51.4]} 11. Nc2
{[%clk 0:02:05.5]} 11... b5 {[%clk 0:02:48.9]} 12. Ne3 {[%clk 0:02:04.8]} 12...
Bd7 {[%clk 0:02:25.4]} 13. Re1 {[%clk 0:01:38.7]} 13... b4 {[%clk 0:02:24.9]}
14. Bd2 {[%clk 0:01:34.4]} 14... bxc3 {[%clk 0:02:24.5]} 15. bxc3 {[%clk
0:01:33.9]} 15... Na5 {[%clk 0:02:20.6]} 16. Ne5 {[%clk 0:01:32.5]} 16... e6
{[%clk 0:02:19]} 0-1